bitfinex-derivatives/quotes_BTCF0:USTF0_20250711
["timestamp","ask_amount","ask_price","bid_price","bid_amount"]
[1752259682098,1.03271939,117740.0,117730.0,0.03321]
[1752259682302,0.6326535,117740.0,117730.0,0.2030379]
[1752259682601,1.10890651,117740.0,117730.0,0.2030379]
[1752259682801,1.03271939,117740.0,117730.0,0.03321]
[1752259683002,1.10896577,117740.0,117730.0,0.03321]
[1752259683403,1.03271939,117740.0,117730.0,0.03321]
[1752259684402,1.10896812,117740.0,117730.0,0.03321]
[1752259686609,1.46976812,117740.0,117730.0,0.2030379]
[1752259686806,1.46996812,117740.0,117730.0,0.03321]
[1752259687308,1.46996812,117740.0,117730.0,0.2030379]
[1752259688908,1.06990223,117740.0,117730.0,0.2261479]
[1752259689107,1.06990223,117740.0,117730.0,0.62621379]
[1752259689407,1.06990223,117740.0,117730.0,0.2261479]
[1752259689708,1.06990223,117740.0,117730.0,0.62621379]
[1752259689911,1.17656104,117740.0,117730.0,0.62621379]
[1752259690102,1.10031231,117740.0,117730.0,0.62621379]
[1752259690302,1.10031231,117740.0,117730.0,0.2261479]
[1752259691712,1.10031231,117740.0,117730.0,0.2030379]
[1752259691713,1.5003782,117740.0,117730.0,0.2030379]
[1752259693114,1.39371939,117740.0,117730.0,0.2030379]
[1752259693608,1.39371939,117740.0,117730.0,0.40932]
[1752259693815,1.39371939,117740.0,117720.0,0.06950609]
[1752259693816,0.201668,117730.0,117720.0,0.06950609]
[1752259694010,1.10950657,117730.0,117720.0,0.47858609]
[1752259694912,1.10950657,117730.0,117720.0,0.64842849]
[1752259695114,1.10950657,117730.0,117720.0,0.47958609]
[1752259695313,1.10950657,117730.0,117720.0,0.64942849]
[1752259695516,1.10950657,117730.0,117720.0,0.65142849]
[1752259698516,1.10950657,117730.0,117720.0,0.48158609]
[1752259698718,1.03313389,117730.0,117720.0,0.48158609]
[1752259698921,1.10950657,117730.0,117720.0,0.48158609]
[1752259699118,1.10950657,117730.0,117720.0,0.41397887]
[1752259700722,1.03313389,117730.0,117720.0,0.41397887]
[1752259701626,1.1397927,117730.0,117720.0,0.41397887]
[1752259702227,1.1397927,117730.0,117720.0,0.00469887]
[1752259702929,1.03313389,117730.0,117720.0,0.00469887]
[1752259703331,1.1397927,117730.0,117720.0,0.00469887]
[1752259703830,1.03313389,117730.0,117720.0,0.00469887]
[1752259704930,1.1397927,117730.0,117720.0,0.00469887]
[1752259705331,1.03313389,117730.0,117720.0,0.00469887]
[1752259705532,1.10952216,117730.0,117720.0,0.00469887]
[1752259705831,1.11877627,117730.0,117720.0,0.20729127]
[1752259707831,0.70945627,117730.0,117720.0,0.03744887]
[1752259708033,0.70944399,117730.0,117720.0,0.03744887]
[1752259708235,1.10950988,117730.0,117720.0,0.00469887]
[1752259710340,1.03313389,117730.0,117720.0,0.00469887]
[1752259710539,1.1397927,117730.0,117720.0,0.00469887]
[1752259712134,1.10949821,117730.0,117720.0,0.00469887]
[1752259714438,0.70943232,117730.0,117720.0,0.00469887]
[1752259714743,1.10949821,117730.0,117720.0,0.00469887]
[1752259716847,1.44289389,117730.0,117720.0,0.00469887]
[1752259717144,1.5495527,117730.0,117720.0,0.00469887]
[1752259717344,0.2245224,117720.0,117710.0,0.0002]
[1752259717544,0.28810549,117710.0,117700.0,0.40996]
[1752259717744,0.2717112,117700.0,117690.0,0.73807502]
[1752259717941,0.69379487,117700.0,117690.0,0.73787502]
[1752259718639,0.69379487,117700.0,117690.0,0.69540412]
[1752259719043,0.69379487,117700.0,117690.0,0.70378858]
[1752259719245,0.69379487,117700.0,117690.0,0.77330392]
[1752259719650,0.69379487,117700.0,117690.0,0.6902444]
[1752259719944,0.6327112,117700.0,117690.0,0.5243698]
[1752259720446,0.69377251,117700.0,117690.0,0.6942554]
[1752259720740,0.69377251,117700.0,117690.0,0.6922554]
[1752259720941,0.69377251,117700.0,117690.0,0.68487094]
[1752259721138,0.69377251,117700.0,117690.0,0.51498534]
[1752259721540,0.6327112,117700.0,117690.0,0.51498534]
[1752259721941,0.69376726,117700.0,117690.0,0.68487094]
[1752259722546,0.6327112,117700.0,117690.0,0.51498534]
[1752259722736,0.6327112,117700.0,117690.0,0.68487104]
[1752259722935,0.7090706,117700.0,117690.0,0.68487104]
[1752259723136,0.7090706,117700.0,117690.0,0.70768104]
[1752259723735,0.6327112,117700.0,117690.0,1.14147693]
[1752259724145,0.6327112,117700.0,117690.0,1.14986733]
[1752259724449,0.69375752,117700.0,117690.0,1.14986733]
[1752259727351,0.69375752,117700.0,117690.0,0.74980144]
[1752259727547,0.69375752,117700.0,117690.0,1.08493693]
[1752259727749,1.03277709,117700.0,117690.0,0.51498534]
[1752259727950,1.11751068,117700.0,117690.0,0.48223534]
[1752259728151,1.03277709,117700.0,117690.0,0.48223534]
[1752259728349,1.1394359,117700.0,117690.0,0.48223534]
[1752259729649,1.03277709,117700.0,117690.0,0.48223534]
[1752259730348,1.10904581,117700.0,117690.0,0.48223534]
[1752259730550,1.03277709,117700.0,117690.0,0.48223534]
[1752259730744,1.10904572,117700.0,117690.0,0.48223534]
[1752259730949,1.10904533,117700.0,117690.0,0.48223534]
[1752259731845,1.10904533,117700.0,117690.0,0.65212104]
[1752259732051,1.10904533,117700.0,117690.0,0.68404104]
[1752259732654,1.10904533,117700.0,117690.0,0.68204104]
[1752259732857,1.10904533,117700.0,117690.0,0.68104104]
[1752259733451,1.03277709,117700.0,117690.0,0.68104104]
[1752259734154,1.03277709,117700.0,117690.0,0.51115534]
[1752259734549,0.6327112,117700.0,117690.0,0.51115534]
[1752259734947,1.03277709,117700.0,117690.0,0.51115534]
[1752259738265,1.10904533,117700.0,117690.0,0.51115534]
[1752259738964,1.10904533,117700.0,117690.0,0.47923534]
[1752259739160,1.03277709,117700.0,117690.0,0.47923534]
[1752259740062,0.2730557,117690.0,117680.0,0.82425945]
[1752259740266,0.69504554,117690.0,117680.0,1.43575955]
[1752259740469,0.69504554,117690.0,117680.0,1.26585945]
[1752259740664,1.09511143,117690.0,117680.0,1.23393945]
[1752259740865,1.09511143,117690.0,117680.0,0.41157945]
[1752259741066,1.03412159,117690.0,117680.0,0.41157945]
[1752259741368,1.09511537,117690.0,117680.0,0.41157945]
[1752259741667,1.03412159,117690.0,117680.0,0.41161945]
[1752259741863,1.11038983,117690.0,117680.0,0.41161945]
[1752259742262,0.71032394,117690.0,117680.0,0.00169945]
[1752259742457,1.11038983,117690.0,117680.0,0.00169945]
[1752259742661,1.52022983,117690.0,117680.0,0.00169945]
[1752259742862,1.44496159,117690.0,117680.0,0.00169945]
[1752259743170,1.5211876,117690.0,117680.0,0.00169945]
[1752259744068,1.44496159,117690.0,117680.0,0.00169945]
[1752259744472,1.44596159,117690.0,117680.0,0.00169945]
[1752259746369,1.5221876,117690.0,117680.0,0.00169945]
[1752259746570,1.1123476,117690.0,117680.0,0.00169945]
[1752259746772,1.5223876,117690.0,117680.0,0.00169945]
[1752259747273,1.5223076,117690.0,117680.0,0.00169945]
[1752259748075,0.71228171,117690.0,117680.0,0.00169945]
[1752259748372,1.1123476,117690.0,117680.0,0.00169945]
[1752259749972,1.1123476,117690.0,117680.0,0.20351955]
[1752259750871,1.1123476,117690.0,117680.0,0.03361945]
[1752259753075,1.1123476,117690.0,117680.0,0.00169945]
[1752259754176,1.03612159,117690.0,117680.0,0.00169945]
[1752259754476,1.1427804,117690.0,117680.0,0.00169945]
[1752259757671,1.5527404,117690.0,117680.0,0.00169945]
[1752259758477,1.95280629,117690.0,117680.0,0.00169945]
[1752259758673,1.5526604,117690.0,117680.0,0.00169945]
[1752259758879,0.2721501,117680.0,117670.0,0.0002]
[1752259759178,0.2721501,117680.0,117660.0,0.40984]
[1752259759179,0.2721645,117670.0,117660.0,0.41004]
[1752259759481,1.03323039,117670.0,117660.0,0.40984]
[1752259759878,1.09428099,117670.0,117660.0,0.40984]
[1752259760580,1.09428099,117670.0,117660.0,0.41184]
[1752259761384,1.09428099,117670.0,117660.0,0.41284]
[1752259764779,1.09428099,117670.0,117660.0,0.003]
[1752259766082,1.09426616,117670.0,117660.0,0.003]
[1752259766283,1.03323039,117670.0,117660.0,0.003]
[1752259767481,1.10954553,117670.0,117660.0,0.003]
[1752259767683,0.70947964,117670.0,117660.0,0.003]
[1752259768279,0.70947964,117670.0,117660.0,0.172929]
[1752259768476,1.10954553,117670.0,117660.0,0.172929]
[1752259769179,1.10954553,117670.0,117660.0,0.003]
[1752259769585,1.10954553,117670.0,117660.0,0.172929]
[1752259769988,1.11154553,117670.0,117660.0,0.169929]
[1752259770580,0.201419,117660.0,117650.0,1.14518552]
[1752259770788,0.633179,117660.0,117650.0,1.10250092]
[1752259770976,0.69422509,117660.0,117650.0,1.10250092]
[1752259771575,0.69422509,117660.0,117650.0,0.70243503]
[1752259772282,0.69422509,117660.0,117650.0,0.53249743]
[1752259772481,0.633179,117660.0,117650.0,0.53249743]
[1752259772685,0.633179,117660.0,117650.0,0.70244083]
[1752259772886,0.70949414,117660.0,117650.0,0.67976083]
[1752259773088,1.10956003,117660.0,117650.0,0.67976083]
[1752259773282,1.03324489,117660.0,117650.0,0.67976083]
[1752259773790,1.10956003,117660.0,117650.0,0.67976083]
[1752259773982,1.10956003,117660.0,117650.0,0.44332]
[1752259774182,1.10956003,117660.0,117650.0,0.6132634]
[1752259775583,1.03324489,117660.0,117650.0,0.6132634]
[1752259776087,1.10956003,117660.0,117650.0,0.6132634]
[1752259777183,1.03324489,117660.0,117650.0,0.6132634]
[1752259777387,1.03324489,117660.0,117650.0,0.0338]
[1752259777584,1.03324489,117660.0,117650.0,0.6133034]
[1752259777889,1.10956003,117660.0,117650.0,0.6133034]
[1752259778089,1.03324489,117660.0,117650.0,0.6133034]
[1752259778691,1.09427748,117660.0,117650.0,0.6133034]
[1752259779386,1.09427748,117660.0,117650.0,0.0338]
[1752259779692,1.03324489,117660.0,117650.0,0.6133034]
[1752259779891,1.03324489,117660.0,117650.0,0.00204]
[1752259780190,1.12569297,117660.0,117650.0,0.4116]
[1752259780380,1.04937783,117660.0,117650.0,0.4116]
[1752259780580,1.04937783,117660.0,117650.0,0.00204]
[1752259780785,1.15603664,117660.0,117650.0,0.00204]
[1752259780994,1.23232452,117660.0,117650.0,0.00204]
[1752259781195,1.12566571,117660.0,117650.0,0.00204]
[1752259781588,1.04937783,117660.0,117650.0,0.00204]
[1752259781987,0.2014334,117650.0,117640.0,0.41146003]
[1752259782197,1.10954784,117650.0,117640.0,0.00170003]
[1752259782587,1.10954784,117650.0,117640.0,3e-08]
[1752259782790,0.1699579,117640.0,117630.0,0.0002]
[1752259782991,0.1700012,117610.0,117600.0,1.05262341]
[1752259783192,1.03311709,117610.0,117600.0,1.46218341]
[1752259783395,1.03311709,117610.0,117600.0,1.29217061]
[1752259783590,1.03311709,117610.0,117600.0,1.23406061]
[1752259783988,1.03311709,117610.0,117600.0,1.41243778]
[1752259784390,1.03311709,117610.0,117600.0,1.24242208]
[1752259784594,1.03311709,117610.0,117600.0,1.24642208]
[1752259784794,1.03311709,117610.0,117600.0,1.23806061]
[1752259784994,1.03311709,117610.0,117600.0,1.41407631]
[1752259785594,1.03311709,117610.0,117600.0,1.41107631]
[1752259785990,1.03311709,117610.0,117600.0,1.41955489]
[1752259786196,0.6330512,117610.0,117600.0,1.47809489]
[1752259786396,0.6330512,117610.0,117600.0,1.47609489]
[1752259787191,0.6330512,117610.0,117600.0,1.54391511]
[1752259787391,0.6330512,117610.0,117600.0,1.943981]
[1752259793298,0.1700012,117610.0,117600.0,2.51411089]
[1752259793593,0.1700012,117610.0,117600.0,1.943981]
[1752259793905,0.1700012,117610.0,117600.0,2.474845]
[1752259794101,0.1700012,117610.0,117600.0,2.974845]
[1752259794403,0.41917041,117620.0,117610.0,0.2263412]
[1752259794605,0.41917041,117620.0,117610.0,0.66183709]
[1752259795600,0.41917041,117620.0,117610.0,0.66283709]
[1752259795801,0.77997041,117620.0,117610.0,0.2627712]
[1752259796103,1.1800363,117620.0,117610.0,0.6390212]
[1752259796495,1.1800363,117620.0,117610.0,0.46902]
[1752259796703,1.1800363,117620.0,117610.0,0.6390212]
[1752259797206,1.24105698,117620.0,117610.0,0.6390212]
[1752259798205,1.24105698,117620.0,117610.0,0.6744512]
[1752259798797,0.84099109,117620.0,117610.0,0.6744512]
[1752259799709,0.84099109,117620.0,117610.0,0.2647712]
[1752259799896,0.84099109,117620.0,117610.0,1.48419709]
[1752259799897,0.41042,117620.0,117610.0,1.48419709]
[1752259800203,0.0002,117620.0,117610.0,2.03287071]
[1752259800396,0.79844935,117640.0,117630.0,0.1699723]
[1752259800602,0.79844935,117640.0,117630.0,1.48096819]
[1752259801005,0.73742867,117640.0,117630.0,1.48096819]
[1752259801814,0.37762867,117640.0,117630.0,1.48096819]
[1752259802014,0.37862867,117640.0,117630.0,1.48096819]
[1752259803003,0.80044935,117640.0,117630.0,1.48096819]
[1752259803207,0.80044935,117640.0,117630.0,1.0809023]
[1752259805504,0.78410638,117640.0,117630.0,1.0809023]
[1752259805701,0.78410638,117640.0,117630.0,1.48096819]
[1752259806207,0.78410638,117640.0,117630.0,1.0809023]
[1752259806907,0.78410638,117640.0,117630.0,1.48096819]
[1752259808811,0.78410638,117640.0,117630.0,1.0809023]
[1752259809708,0.78410638,117640.0,117630.0,0.91093]
[1752259809915,0.78410638,117640.0,117630.0,1.0809023]
[1752259811110,0.78410638,117640.0,117630.0,1.48096819]
[1752259812912,1.12315159,117640.0,117630.0,0.85259]
[1752259813115,1.12315159,117640.0,117620.0,0.05100196]
[1752259813116,0.2753023,117630.0,117620.0,0.05100196]
[1752259813412,1.03616819,117630.0,117620.0,0.44287]
[1752259813607,1.11245674,117630.0,117620.0,0.44287]
[1752259814517,1.03616819,117630.0,117620.0,0.6128568]
[1752259815014,0.6361023,117630.0,117620.0,0.6359668]
[1752259815215,0.71232007,117630.0,117620.0,0.6359668]
[1752259815411,0.6361023,117630.0,117620.0,0.6359668]
[1752259815816,0.71232706,117630.0,117620.0,0.6359668]
[1752259819915,0.71232706,117630.0,117620.0,0.46598]
[1752259820124,0.71232706,117630.0,117620.0,0.44287]
[1752259820125,0.71252706,117630.0,117620.0,0.44287]
[1752259820316,0.71252706,117630.0,117620.0,0.03323]
[1752259820517,0.2745268,117620.0,117610.0,0.0304]
[1752259820710,0.2745412,117610.0,117600.0,1.13523713]
[1752259820910,1.09642063,117610.0,117600.0,1.33216083]
[1752259821616,1.09642063,117610.0,117600.0,1.50217653]
[1752259821920,1.03540709,117610.0,117600.0,1.50217653]
[1752259822114,1.11167287,117610.0,117600.0,1.50517653]
[1752259822708,1.11167287,117610.0,117600.0,1.09553653]
[1752259822914,1.09642948,117610.0,117600.0,1.51137653]
[1752259823513,1.09642948,117610.0,117600.0,1.34136083]
[1752259824114,1.11167287,117610.0,117600.0,1.51137653]
[1752259824421,1.03540709,117610.0,117600.0,1.51137653]
[1752259824614,1.11167287,117610.0,117600.0,1.51137653]
[1752259826524,0.71160698,117610.0,117600.0,1.51137653]
[1752259826821,1.11167287,117610.0,117600.0,1.51137653]
[1752259829927,0.71160698,117610.0,117600.0,1.96978242]
[1752259830115,0.07626578,117610.0,117600.0,2.36984831]
[1752259830315,0.0610046,117610.0,117600.0,3.02821741]
[1752259830522,0.06121805,117620.0,117610.0,0.1931112]
[1752259830732,0.48558578,117630.0,117620.0,0.1699867]
[1752259830733,0.07626578,117630.0,117620.0,0.1699867]
[1752259831026,0.77862057,117640.0,117630.0,0.1699723]
[1752259831228,0.77862057,117640.0,117630.0,0.57003819]
[1752259833340,0.7627845,117640.0,117630.0,0.57003819]
[1752259833636,0.7627845,117640.0,117630.0,0.57103819]
[1752259834430,0.6778007,117640.0,117630.0,0.5797032]
[1752259834932,0.6447507,117640.0,117630.0,0.5797032]
[1752259835736,0.6778007,117640.0,117630.0,0.5797032]
[1752259837736,1.0386007,117640.0,117630.0,0.5797032]
[1752259838128,1.0386007,117640.0,117630.0,0.1709723]
[1752259838334,1.11490477,117640.0,117630.0,0.1709723]
[1752259838936,1.11490477,117640.0,117630.0,0.001]
[1752259839234,1.11490477,117640.0,117630.0,0.1709723]
[1752259839439,1.11590477,117640.0,117630.0,0.001]
[1752259839738,1.51597066,117640.0,117630.0,0.001]
[1752259839943,1.51597066,117640.0,117620.0,0.83565229]
[1752259839944,0.2745123,117630.0,117620.0,0.82732]
[1752259840131,1.03537819,117630.0,117620.0,0.9973068]
[1752259840335,1.03537819,117630.0,117620.0,0.82732]
[1752259840740,1.11168226,117630.0,117620.0,0.82732]
[1752259841033,1.11168226,117630.0,117620.0,0.82832]
[1752259841034,1.03537819,117630.0,117620.0,0.82832]
[1752259842034,1.03537819,117630.0,117620.0,0.82732]
[1752259843036,1.11163711,117630.0,117620.0,0.82832]
[1752259843645,1.11163711,117630.0,117620.0,0.82732]
[1752259844445,1.11263711,117630.0,117620.0,0.82732]
[1752259845546,1.1211481,117630.0,117620.0,0.82732]
[1752259846246,1.11263711,117630.0,117620.0,0.82732]
[1752259846750,1.11463711,117630.0,117620.0,0.82732]
[1752259853551,1.11461328,117630.0,117620.0,0.82732]
[1752259853746,1.11481328,117630.0,117620.0,0.82732]
[1752259856152,1.145237,117630.0,117620.0,0.82732]
[1752259857357,1.03857819,117630.0,117620.0,0.82732]
[1752259858049,1.11482821,117630.0,117620.0,0.82732]
[1752259860857,1.11482821,117630.0,117620.0,0.7219814]
[1752259861056,0.2244868,117620.0,117610.0,0.82368]
[1752259861257,1.09579404,117620.0,117610.0,0.82348]
[1752259861651,1.03478269,117620.0,117610.0,0.82348]
[1752259861850,1.09578589,117620.0,117610.0,0.82348]
[1752259862454,1.03478269,117620.0,117610.0,0.82348]
[1752259862856,1.11103271,117620.0,117610.0,0.82348]
[1752259863049,1.03478269,117620.0,117610.0,0.82348]
[1752259864356,1.03478269,117620.0,117610.0,0.70863327]
[1752259864755,1.55298611,117620.0,117610.0,0.70863327]
[1752259865152,1.44626269,117620.0,117610.0,0.70863327]
[1752259865356,1.55297006,117620.0,117610.0,0.70863327]
[1752259869566,1.44626269,117620.0,117610.0,0.70863327]
[1752259870966,1.44594269,117620.0,117610.0,0.70863327]
[1752259871362,1.55267985,117620.0,117610.0,0.70863327]
[1752259872168,1.44594269,117620.0,117610.0,0.70863327]
[1752259872766,1.03478269,117620.0,117610.0,0.70863327]
[1752259872966,1.14151119,117620.0,117610.0,0.70863327]
[1752259873260,1.03478269,117620.0,117610.0,0.70863327]
[1752259876668,1.11100379,117620.0,117610.0,0.70863327]
[1752259877672,0.2742712,117610.0,117600.0,0.41254061]
[1752259877971,1.11136193,117610.0,117600.0,0.41234061]
[1752259878664,1.12729074,117610.0,117600.0,0.41234061]
[1752259879172,1.12729074,117610.0,117600.0,0.41334061]
[1752259880073,1.0510659,117610.0,117600.0,0.41334061]
[1752259880273,1.0510659,117610.0,117600.0,0.00270061]
[1752259880477,1.15778698,117610.0,117600.0,0.00270061]
[1752259880866,1.96857287,117610.0,117600.0,0.00270061]
[1752259881071,2.04480734,117610.0,117600.0,0.00270061]
[1752259881269,1.56850698,117610.0,117600.0,0.00270061]
[1752259881671,1.96857287,117610.0,117600.0,0.00270061]
[1752259881975,2.03584643,117610.0,117600.0,0.00270061]
[1752259882373,1.63578054,117610.0,117600.0,0.00270061]
[1752259882575,1.52905946,117610.0,117600.0,0.00370061]
[1752259882774,1.63579927,117610.0,117600.0,0.00370061]
[1752259883678,1.63579927,117610.0,117600.0,0.00105488]
[1752259883876,1.52905946,117610.0,117600.0,0.00105488]
[1752259884378,1.92912535,117610.0,117600.0,8e-08]
[1752259885571,1.12033946,117610.0,117600.0,8e-08]
[1752259885778,1.63754312,117610.0,117600.0,8e-08]
[1752259890186,1.53077946,117610.0,117600.0,8e-08]
[1752259890489,1.12033946,117610.0,117600.0,8e-08]
[1752259890680,1.63743419,117610.0,117600.0,8e-08]
[1752259891981,1.22711419,117610.0,117600.0,8e-08]
[1752259892186,1.63743419,117610.0,117600.0,8e-08]
[1752259893086,1.22711419,117610.0,117600.0,8e-08]
[1752259893283,1.63739419,117610.0,117600.0,8e-08]
[1752259895781,1.53061946,117610.0,117600.0,8e-08]
[1752259897289,1.63745793,117610.0,117600.0,8e-08]
[1752259897689,1.53061946,117610.0,117600.0,8e-08]
[1752259899986,1.63746894,117610.0,117600.0,8e-08]
[1752259900383,1.57019538,117610.0,117600.0,8e-08]
[1752259900780,1.53966879,117610.0,117600.0,8e-08]
[1752259901182,1.12938879,117610.0,117600.0,8e-08]
[1752259901587,1.15991538,117610.0,117600.0,8e-08]
[1752259901987,0.2279957,117600.0,117590.0,0.1702301]
[1752259902182,1.14200952,117600.0,117590.0,0.1700301]
[1752259903386,0.2280101,117590.0,117580.0,1.10851109]
[1752259903590,0.35063658,117590.0,117580.0,1.10831109]
[1752259905089,0.35063658,117590.0,117580.0,1.11031109]
[1752259905389,1.11150247,117590.0,117580.0,0.41268]
[1752259905585,1.11150247,117590.0,117580.0,0.5827246]
[1752259905789,0.6351001,117590.0,117580.0,0.5857246]
[1752259905994,0.6351001,117590.0,117580.0,0.41568]
[1752259906289,1.03516599,117590.0,117580.0,0.41568]
[1752259906685,1.14202392,117590.0,117580.0,0.41568]
[1752259907687,1.15810603,117590.0,117580.0,0.41568]
[1752259908489,1.15810603,117590.0,117580.0,0.5857246]
[1752259908689,1.0512481,117590.0,117580.0,0.5857246]
[1752259908991,0.65118221,117590.0,117580.0,0.5857246]
[1752259909493,0.65118221,117590.0,117580.0,0.41568]
[1752259909791,0.65118221,117590.0,117580.0,0.5857246]
[1752259909992,1.0512481,117590.0,117580.0,0.5857246]
[1752259911998,1.0512481,117590.0,117580.0,0.41568]
[1752259912590,0.75804014,117590.0,117580.0,0.41568]
[1752259912796,1.15810603,117590.0,117580.0,0.41568]
[1752259917401,1.0512481,117590.0,117580.0,0.41568]
[1752259918200,1.15823295,117590.0,117580.0,0.41568]
[1752259924305,0.75816706,117590.0,117580.0,0.41568]
[1752259924503,1.15823295,117590.0,117580.0,0.41568]
[1752259938135,1.15823295,117590.0,117580.0,0.5857245]
[1752259938301,0.75816706,117590.0,117580.0,0.5857244]
[1752259938430,0.75816706,117590.0,117580.0,0.98579029]
[1752259938431,0.83463369,117590.0,117580.0,0.98579029]
[1752259938605,0.33384884,117590.0,117580.0,0.98579029]
[1752259939418,0.26257884,117590.0,117580.0,0.98579029]
[1752259939710,0.24649673,117590.0,117580.0,1.15587829]
[1752259939917,0.24649673,117590.0,117580.0,0.77370381]
[1752259940106,0.24649673,117590.0,117580.0,1.1737697]
[1752259941116,0.24649673,117590.0,117580.0,1.6737697]
[1752259942511,0.24649673,117590.0,117580.0,1.9736697]
[1752259943112,0.07646663,117590.0,117580.0,2.3344697]
[1752259943314,0.07646663,117600.0,117590.0,0.1700301]
[1752259943512,0.24648233,117600.0,117590.0,0.93089599]
[1752259943706,0.13758756,117600.0,117590.0,1.10096799]
[1752259943912,0.06112093,117600.0,117590.0,1.10096799]
[1752259944617,0.06112093,117600.0,117590.0,1.10196799]
[1752259944916,0.06112093,117600.0,117590.0,1.10396799]
[1752259945617,0.06112093,117600.0,117590.0,1.60396799]
[1752259947109,0.31908294,117610.0,117590.0,1.43393789]
[1752259947310,0.14906974,117610.0,117600.0,1.39060159]
[1752259947520,0.31907094,117610.0,117600.0,1.39060159]
[1752259950223,0.67987094,117610.0,117600.0,1.39060159]
[1752259950423,0.31907094,117610.0,117600.0,1.39060159]
[1752259950920,0.67987094,117610.0,117600.0,1.39060159]
[1752259951122,0.31907094,117610.0,117600.0,1.39060159]
[1752259951923,0.67987094,117610.0,117600.0,1.39060159]
[1752259952522,0.71271094,117610.0,117600.0,1.39060159]
[1752259952920,0.65159001,117610.0,117600.0,1.39060159]
[1752259954726,0.72805664,117610.0,117600.0,1.39060159]
[1752259956129,0.36725664,117610.0,117600.0,1.39060159]
[1752259957632,0.72805664,117610.0,117600.0,1.39060159]
[1752259958132,0.36725664,117610.0,117600.0,1.39060159]
[1752259958525,0.65159001,117610.0,117600.0,1.39060159]
[1752259958727,0.29079001,117610.0,117600.0,1.39060159]
[1752259959033,0.65159001,117610.0,117600.0,1.39060159]
[1752259959631,0.29079001,117610.0,117600.0,1.39060159]
[1752259961337,0.65159001,117610.0,117600.0,0.9905357]
[1752259961534,0.65159001,117610.0,117600.0,1.39060159]
[1752259961831,0.72805664,117610.0,117600.0,1.39060159]
[1752259962937,0.78903059,117610.0,117600.0,1.39060159]
[1752259963136,0.71256396,117610.0,117600.0,1.39060159]
[1752259964335,0.71256396,117610.0,117600.0,0.9905357]
[1752259964730,1.11262985,117610.0,117600.0,0.82052]
[1752259965039,1.0516559,117610.0,117600.0,0.82052]
[1752259965333,1.12812253,117610.0,117600.0,0.82052]
[1752259965938,1.12812253,117610.0,117600.0,0.9905356]
[1752259966739,0.72805664,117610.0,117600.0,0.9905356]
[1752259967228,0.72805664,117610.0,117600.0,1.39060149]
[1752259974338,0.71212783,117610.0,117600.0,1.39060149]
[1752259974549,0.35132783,117610.0,117600.0,1.39060149]
[1752259976450,0.35132783,117610.0,117600.0,1.70817141]
[1752259976650,0.07846663,117610.0,117600.0,2.1691373]
[1752259976949,0.10718485,117620.0,117610.0,0.1700012]
[1752259977146,0.0002,117620.0,117610.0,0.93086709]
[1752259977447,0.0002,117620.0,117610.0,1.10091509]
[1752259978041,0.0613181,117620.0,117610.0,1.10091509]
[1752259978242,0.0613181,117620.0,117610.0,1.60091509]
[1752259978548,0.0002,117620.0,117610.0,1.60091509]
[1752259979142,0.0002,117620.0,117610.0,1.60291509]
[1752259980449,0.0002,117620.0,117610.0,1.60391509]
[1752259980838,0.1701868,117620.0,117610.0,1.24311509]
[1752259981143,0.0002,117620.0,117610.0,1.90381509]
[1752259982251,0.1701868,117620.0,117610.0,1.90381509]
[1752259983249,0.0002,117620.0,117610.0,1.90381509]
[1752259983747,0.0002,117620.0,117610.0,1.73376709]
[1752259985761,0.1701868,117620.0,117610.0,1.73376709]
[1752259986756,0.0002,117620.0,117610.0,1.73376709]
[1752259987753,0.1701868,117620.0,117610.0,1.73376709]
[1752259988655,0.0002,117620.0,117610.0,1.73376709]
[1752259989252,0.1701868,117620.0,117610.0,1.37296709]
[1752259989456,0.1701868,117620.0,117610.0,1.73376709]
[1752259989969,0.0002,117620.0,117610.0,1.73376709]
[1752259990466,0.1701868,117620.0,117610.0,1.37296709]
[1752259990668,0.1701868,117620.0,117610.0,1.73376709]
[1752259990870,0.2411168,117620.0,117610.0,1.73376709]
[1752259991070,0.2711868,117620.0,117610.0,1.73376709]
[1752259991267,0.2711868,117620.0,117610.0,1.37296709]
[1752259991465,0.2711868,117620.0,117610.0,1.73376709]
[1752259991667,0.2711868,117620.0,117610.0,1.37296709]
[1752259991974,1.03205269,117620.0,117610.0,0.503]
[1752259992272,0.6931049,117620.0,117610.0,0.6730012]
[1752259992571,0.6931049,117620.0,117610.0,0.1730012]
[1752259993169,0.6319868,117620.0,117610.0,0.1730012]
[1752259993364,0.6931049,117620.0,117610.0,0.1730012]
[1752259994768,0.6319868,117620.0,117610.0,0.1730012]
[1752259999072,0.6319868,117620.0,117610.0,0.57306709]
[1752259999073,0.2711868,117620.0,117610.0,0.57306709]
[1752259999280,0.07113,117620.0,117610.0,0.57306709]
[1752259999576,0.2411168,117620.0,117610.0,0.57306709]
[1752260000168,0.2734768,117620.0,117610.0,1.07306709]
[1752260001574,0.2734768,117620.0,117610.0,1.37296709]
[1752260002274,0.2734767,117620.0,117610.0,1.73376709]
[1752260002671,0.2734767,117620.0,117610.0,1.39633903]
[1752260003071,0.2734767,117620.0,117610.0,1.37296709]
[1752260003274,0.2734767,117620.0,117610.0,1.73376709]
[1752260003576,0.07113,117620.0,117610.0,1.73376709]
[1752260003775,0.0002,117620.0,117610.0,1.73376709]
[1752260003975,0.0002,117620.0,117610.0,1.75703749]
[1752260005281,0.0613181,117620.0,117610.0,1.73376709]
[1752260005471,0.0613181,117620.0,117610.0,1.90381509]
[1752260005670,0.07624985,117630.0,117620.0,0.1699867]
[1752260005671,0.06106557,117630.0,117620.0,0.1699867]
[1752260005877,0.0738,117640.0,117630.0,0.1699722]
[1752260006078,0.0738,117640.0,117630.0,0.86993809]
[1752260006581,0.0738,117640.0,117630.0,0.93920575]
[1752260006781,0.0738,117640.0,117630.0,1.30000575]
[1752260007481,0.01832722,117650.0,117640.0,0.1699579]
[1752260007680,0.002,117650.0,117640.0,2.14872968]
[1752260008277,0.002,117650.0,117640.0,2.16674344]
[1752260008479,0.0758,117650.0,117640.0,2.16674344]
[1752260008672,0.0778,117650.0,117640.0,2.16674344]
[1752260008979,0.0778,117650.0,117640.0,2.17509211]
[1752260009382,0.0788,117650.0,117640.0,2.67509211]
[1752260010584,0.0788,117650.0,117640.0,2.97499211]
[1752260012787,0.0738,117670.0,117660.0,0.169929]
[1752260012975,0.02665,117690.0,117670.0,0.2390546]
[1752260013175,0.1965357,117690.0,117680.0,1.45882599]
[1752260013381,0.2288957,117690.0,117680.0,1.47631321]
[1752260013780,0.2288957,117690.0,117680.0,1.43818321]
[1752260013983,0.05901,117690.0,117680.0,1.43718321]
[1752260014181,0.05901,117690.0,117680.0,1.47531321]
[1752260014380,0.2298957,117690.0,117680.0,1.47531321]
[1752260014986,0.2790457,117690.0,117680.0,1.97531321]
[1752260017886,0.10916,117690.0,117680.0,1.97531321]
[1752260018086,0.2790457,117690.0,117680.0,1.97531321]
[1752260022490,0.2790457,117690.0,117680.0,2.27521321]